[Event "Veteran-SM 65+ 2025"]
[Site "Uppsala, Sweden"]
[Date "2025.07.02"]
[Round "5.7"]
[White "Hogberg, Thomas"]
[Black "Haggvik, Kjell"]
[Result "1-0"]
[TimeControl "90 min for 40 move + 30 min with an increment of 30 sec starting move 1"]
[WhiteFideId "1706039"]
[BlackFideId "1776495"]
[WhiteElo "1979"]
[BlackElo "1932"]

1. d4 {[%clk 01:30:51]} {[%emt 00:00:08]} d5 {[%clk 01:30:52]} {[%emt
00:00:08]} 2. Nf3 {[%clk 01:30:46]} {[%emt 00:00:35]} Nf6 {[%clk 01:31:13]}
{[%emt 00:00:10]} 3. Bf4 {[%clk 01:31:06]} {[%emt 00:00:09]} e6 {[%clk
01:31:15]} {[%emt 00:00:28]} 4. e3 {[%clk 01:30:47]} {[%emt 00:00:50]} c5
{[%clk 01:31:32]} {[%emt 00:00:13]} 5. c3 {[%clk 01:30:41]} {[%emt 00:00:36]}
Nc6 {[%clk 01:31:54]} {[%emt 00:00:08]} 6. Nbd2 {[%clk 01:28:34]} {[%emt
00:02:38]} Nh5 {[%clk 01:30:56]} {[%emt 00:01:28]} 7. Bg3 {[%clk 01:28:09]}
{[%emt 00:00:55]} Qb6 {[%clk 01:30:13]} {[%emt 00:01:13]} 8. Qb3 {[%clk
01:27:21]} {[%emt 00:01:17]} Bd7 {[%clk 01:23:23]} {[%emt 00:07:20]} 9. Be2
{[%clk 01:26:21]} {[%emt 00:01:30]} Be7 {[%clk 01:20:29]} {[%emt 00:03:24]} 10.
O-O {[%clk 01:19:30]} {[%emt 00:07:21]} Nxg3 {[%clk 01:20:39]} {[%emt
00:00:21]} 11. hxg3 {[%clk 01:19:51]} {[%emt 00:00:09]} Qxb3 {[%clk 01:20:04]}
{[%emt 00:01:05]} 12. axb3 {[%clk 01:17:45]} {[%emt 00:02:36]} cxd4 {[%clk
01:18:24]} {[%emt 00:02:10]} 13. exd4 {[%clk 01:17:29]} {[%emt 00:00:46]} Bf6
{[%clk 01:18:10]} {[%emt 00:00:45]} 14. b4 {[%clk 01:17:44]} {[%emt 00:00:15]}
O-O {[%clk 01:17:17]} {[%emt 00:01:23]} 15. b5 {[%clk 01:16:17]} {[%emt
00:01:57]} Ne7 {[%clk 01:17:22]} {[%emt 00:00:24]} 16. Ra2 {[%clk 01:16:01]}
{[%emt 00:00:44]} b6 {[%clk 01:08:05]} {[%emt 00:09:49]} 17. Rfa1 {[%clk
01:15:13]} {[%emt 00:01:17]} Nc8 {[%clk 01:08:11]} {[%emt 00:00:26]} 18. b3
{[%clk 01:14:10]} {[%emt 00:01:33]} Re8 {[%clk 01:07:22]} {[%emt 00:01:19]} 19.
Ne5 {[%clk 01:08:41]} {[%emt 00:05:58]} Bxe5 {[%clk 01:07:24]} {[%emt
00:00:29]} 20. dxe5 {[%clk 01:09:05]} {[%emt 00:00:07]} f6 {[%clk 01:07:20]}
{[%emt 00:00:34]} 21. Nf3 {[%clk 01:07:53]} {[%emt 00:01:42]} Re7 {[%clk
01:07:07]} {[%emt 00:00:42]} 22. c4 {[%clk 01:06:57]} {[%emt 00:01:26]} Be8
{[%clk 01:05:36]} {[%emt 00:02:01]} 23. g4 {[%clk 01:05:18]} {[%emt 00:02:09]}
h6 {[%clk 01:02:08]} {[%emt 00:03:58]} 24. Rd2 {[%clk 01:02:49]} {[%emt
00:02:59]} Bf7 {[%clk 01:01:35]} {[%emt 00:01:03]} 25. Nd4 {[%clk 01:00:23]}
{[%emt 00:02:55]} a5 {[%clk 00:49:54]} {[%emt 00:12:11]} 26. bxa6 {[%clk
00:59:34]} {[%emt 00:01:20]} Rea7 {[%clk 00:50:09]} {[%emt 00:00:14]} 27. cxd5
{[%clk 00:56:45]} {[%emt 00:03:20]} exd5 {[%clk 00:50:14]} {[%emt 00:00:25]} 28.
e6 {[%clk 00:57:05]} {[%emt 00:00:10]} Be8 {[%clk 00:50:25]} {[%emt 00:00:19]}
29. Nb5 {[%clk 00:57:23]} {[%emt 00:00:12]} Rxa6 {[%clk 00:50:02]} {[%emt
00:00:54]} 30. Rxa6 {[%clk 00:57:16]} {[%emt 00:00:37]} Rxa6 {[%clk 00:50:25]}
{[%emt 00:00:07]} 31. Rxd5 {[%clk 00:57:31]} {[%emt 00:00:14]} Ra1+ {[%clk
00:47:39]} {[%emt 00:03:17]} 32. Kh2 {[%clk 00:57:33]} {[%emt 00:00:26]} Rc1
{[%clk 00:47:18]} {[%emt 00:00:51]} 33. Nd4 {[%clk 00:56:06]} {[%emt 00:01:58]}
Kf8 {[%clk 00:44:18]} {[%emt 00:03:30]} 34. Bc4 {[%clk 00:50:26]} {[%emt
00:06:10]} g6 {[%clk 00:38:36]} {[%emt 00:06:12]} 35. Rd8 {[%clk 00:49:47]}
{[%emt 00:01:08]} Ne7 {[%clk 00:38:56]} {[%emt 00:00:12]} 36. Bb5 {[%clk
00:50:11]} {[%emt 00:00:06]} Rc8 {[%clk 00:39:19]} {[%emt 00:00:07]} 37. Rxc8
{[%clk 00:41:51]} {[%emt 00:08:50]} Nxc8 {[%clk 00:39:41]} {[%emt 00:00:08]} 38.
Bxe8 {[%clk 00:42:16]} {[%emt 00:00:05]} Kxe8 {[%clk 00:39:57]} {[%emt
00:00:14]} 39. f4 {[%clk 00:42:39]} {[%emt 00:00:06]} Ne7 {[%clk 00:34:48]}
{[%emt 00:05:39]} 40. f5 {[%clk 00:42:28]} {[%emt 00:00:41]} g5 {[%clk
00:31:55]} {[%emt 00:03:23]} 41. Kg3 {[%clk 00:42:47]} {[%emt 00:00:11]} Kd8
{[%clk 00:32:17]} {[%emt 00:00:09]} 42. Kf3 {[%clk 00:42:35]} {[%emt 00:00:42]}
Kc7 {[%clk 00:32:30]} {[%emt 00:00:17]} 43. Ke4 {[%clk 00:42:09]} {[%emt
00:00:55]} Kd6 {[%clk 00:32:54]} {[%emt 00:00:06]} 44. Ne2 {[%clk 00:38:38]}
{[%emt 00:04:01]} Nd5 {[%clk 00:31:49]} {[%emt 00:01:35]} 45. Kd4 {[%clk
00:38:53]} {[%emt 00:00:14]} Nc7 {[%clk 00:28:21]} {[%emt 00:03:58]} 46. Nc3
{[%clk 00:38:50]} {[%emt 00:00:34]} Ne8 {[%clk 00:25:52]} {[%emt 00:02:59]} 47.
Nd5 {[%clk 00:37:33]} {[%emt 00:01:46]} h5 {[%clk 00:20:01]} {[%emt 00:06:21]}
48. gxh5 {[%clk 00:36:37]} {[%emt 00:01:37]} 1-0

[Event "Veteran-SM 65+ 2025"]
[Site "Uppsala, Sweden"]
[Date "2025.07.02"]
[Round "5.8"]
[White "Vrabec, Josip"]
[Black "Malmdin, Nils-Ake"]
[Result "1/2-1/2"]
[TimeControl "90 min for 40 move + 30 min with an increment of 30 sec starting move 1"]
[BlackTitle "FM"]
[WhiteFideId "1714953"]
[BlackFideId "1701584"]
[WhiteElo "1908"]
[BlackElo "2103"]

1. e4 {[%clk 01:30:58]} d5 {[%clk 01:30:19]} {[%emt 00:00:42]} 2. exd5 {[%emt
00:00:22]} Nf6 {[%clk 01:30:38]} {[%emt 00:00:08]} 3. Nc3 {[%clk 01:31:27]}
{[%emt 00:00:13]} Nxd5 4. Nxd5 {[%clk 01:31:36]} Qxd5 {[%clk 01:30:55]} {[%emt
00:00:11]} 5. d4 {[%clk 01:31:56]} {[%emt 00:00:11]} Nc6 {[%clk 01:30:43]}
{[%emt 00:00:42]} 6. Be3 {[%clk 01:31:36]} {[%emt 00:00:50]} g6 {[%clk
01:22:22]} {[%emt 00:08:49]} 7. Nf3 {[%clk 01:29:46]} {[%emt 00:02:22]} Bg7
{[%clk 01:22:14]} {[%emt 00:00:38]} 8. Be2 {[%clk 01:28:57]} {[%emt 00:01:20]}
Bg4 {[%clk 01:14:50]} {[%emt 00:07:52]} 9. O-O {[%clk 01:26:21]} {[%emt
00:03:08]} O-O {[%clk 01:07:58]} {[%emt 00:07:21]} 10. h3 {[%clk 01:24:32]}
{[%emt 00:02:19]} Bf5 {[%clk 01:06:59]} {[%emt 00:01:29]} 11. c3 {[%clk
01:23:45]} {[%emt 00:01:18]} a5 {[%clk 00:59:42]} {[%emt 00:07:46]} 12. a3
{[%clk 01:21:37]} {[%emt 00:02:38]} a4 {[%clk 00:55:34]} {[%emt 00:04:38]} 13.
Nd2 {[%clk 01:19:45]} {[%emt 00:02:22]} e5 {[%clk 00:49:48]} {[%emt 00:06:15]}
14. c4 {[%clk 01:16:50]} {[%emt 00:03:26]} Qd8 {[%clk 00:43:22]} {[%emt
00:06:54]} 15. d5 {[%emt 00:01:57]} Nd4 {[%clk 00:42:09]} {[%emt 00:01:40]} 16.
Bxd4 {[%clk 01:14:44]} {[%emt 00:01:13]} exd4 {[%clk 00:42:28]} {[%emt
00:00:11]} 17. Nf3 {[%clk 01:14:31]} {[%emt 00:00:43]} Qf6 {[%clk 00:36:34]}
{[%emt 00:06:24]} 18. Bd3 {[%clk 01:12:57]} {[%emt 00:02:05]} Bd7 {[%clk
00:36:52]} {[%emt 00:00:12]} 19. Re1 {[%clk 01:08:46]} {[%emt 00:04:41]} Rfe8
{[%clk 00:36:42]} {[%emt 00:00:40]} 20. Re4 {[%clk 01:05:21]} {[%emt 00:03:54]}
c6 {[%clk 00:26:33]} {[%emt 00:10:39]} 21. Rxd4 {[%clk 00:48:27]} {[%emt
00:17:25]} c5 {[%clk 00:26:32]} {[%emt 00:00:31]} 22. Re4 {[%clk 00:48:24]}
{[%emt 00:00:32]} Qxb2 {[%clk 00:26:44]} {[%emt 00:00:18]} 23. Rb1 {[%clk
00:47:09]} {[%emt 00:01:45]} Qxa3 {[%clk 00:26:57]} {[%emt 00:00:18]} 24. Rxb7
{[%clk 00:43:43]} {[%emt 00:03:56]} Rxe4 {[%clk 00:23:13]} {[%emt 00:04:14]} 25.
Bxe4 {[%clk 00:44:10]} {[%emt 00:00:03]} Rd8 {[%clk 00:22:44]} {[%emt
00:00:58]} 26. Bc2 {[%clk 00:37:18]} {[%emt 00:07:23]} Qa2 {[%clk 00:19:18]}
{[%emt 00:03:56]} 27. Nd2 {[%clk 00:27:55]} {[%emt 00:09:53]} Bc3 {[%clk
00:19:05]} {[%emt 00:00:43]} 28. Ne4 {[%clk 00:25:25]} {[%emt 00:03:00]} Qxc4
{[%clk 00:18:48]} {[%emt 00:00:48]} 29. Nd6 {[%clk 00:14:39]} {[%emt 00:11:16]}
Qf4 {[%clk 00:16:38]} {[%emt 00:02:39]} 30. Ne4 {[%clk 00:14:31]} {[%emt
00:00:38]} Bd4 {[%clk 00:16:20]} {[%emt 00:00:49]} 31. Qd2 {[%clk 00:11:28]}
{[%emt 00:03:33]} Qe5 {[%clk 00:13:45]} {[%emt 00:03:05]} 32. Qa5 {[%clk
00:10:42]} {[%emt 00:01:17]} Qe8 {[%clk 00:11:21]} {[%emt 00:02:53]} 33. Nd6
{[%clk 00:08:40]} {[%emt 00:02:31]} Qf8 {[%clk 00:10:57]} {[%emt 00:00:53]} 34.
Ne4 {[%clk 00:08:29]} {[%emt 00:00:42]} Ra8 {[%clk 00:07:29]} {[%emt 00:03:58]}
35. Qc7 {[%clk 00:07:36]} {[%emt 00:01:26]} a3 {[%clk 00:07:08]} {[%emt
00:00:51]} 36. Bb3 {[%clk 00:07:46]} {[%emt 00:00:19]} Re8 {[%clk 00:04:36]}
{[%emt 00:03:01]} 37. Qxd7 {[%clk 00:06:33]} {[%emt 00:01:44]} Rxe4 {[%clk
00:04:48]} {[%emt 00:00:17]} 38. d6 {[%clk 00:06:27]} {[%emt 00:00:37]} c4
{[%clk 00:03:05]} {[%emt 00:02:13]} 39. Bxc4 {[%clk 00:03:30]} {[%emt
00:03:27]} Bxf2+ {[%clk 00:03:24]} {[%emt 00:00:10]} 40. Kxf2 {[%clk 00:03:39]}
{[%emt 00:00:22]} Rxc4 {[%clk 00:03:45]} {[%emt 00:00:09]} 41. Rc7 {[%clk
00:03:27]} {[%emt 00:00:42]} Rf4+ {[%clk 00:26:57]} {[%emt 00:07:18]} 42. Kg3
{[%clk 00:32:08]} {[%emt 00:01:48]} a2 {[%clk 00:26:37]} {[%emt 00:00:49]} 43.
Rc8 {[%clk 00:30:28]} {[%emt 00:02:11]} a1=Q {[%clk 00:26:25]} {[%emt
00:00:43]} 44. Rxf8+ {[%clk 00:30:16]} {[%emt 00:00:42]} Kxf8 {[%clk 00:23:36]}
{[%emt 00:03:18]} 45. Qe7+ {[%clk 00:30:25]} {[%emt 00:00:21]} Kg7 {[%clk
00:23:49]} {[%emt 00:00:16]} 46. Kxf4 {[%clk 00:30:02]} {[%emt 00:00:55]} Qf1+
{[%clk 00:16:56]} {[%emt 00:07:23]} 47. Kg3 {[%clk 00:30:08]} {[%emt 00:00:23]}
Qf6 {[%clk 00:15:59]} {[%emt 00:01:29]} 48. Kh2 {[%clk 00:28:23]} {[%emt
00:02:14]} h5 {[%clk 00:15:56]} {[%emt 00:00:33]} 49. Kg1 {[%clk 00:26:06]}
{[%emt 00:02:45]} g5 {[%clk 00:13:42]} {[%emt 00:02:45]} 50. Kh1 {[%clk
00:18:53]} {[%emt 00:06:35]} 1/2-1/2

[Event "Veteran-SM 65+ 2025"]
[Site "Uppsala, Sweden"]
[Date "2025.07.03"]
[Round "6.1"]
[White "Sigeman, Johan"]
[Black "Marttala, Thomas"]
[Result "1/2-1/2"]
[TimeControl "90 min for 40 move + 30 min with an increment of 30 sec starting move 1"]
[WhiteFideId "1705601"]
[BlackFideId "1701118"]
[WhiteElo "2012"]
[BlackElo "2123"]

1. d4 {[%clk 01:30:57]} {[%emt 00:00:02]} Nf6 {[%clk 01:30:40]} {[%emt
00:00:20]} 2. Nf3 {[%clk 01:31:12]} {[%emt 00:00:15]} e6 {[%clk 01:29:48]}
{[%emt 00:01:22]} 3. g3 {[%clk 01:31:16]} {[%emt 00:00:26]} b6 {[%clk
01:30:08]} {[%emt 00:00:10]} 4. Bg2 {[%clk 01:31:16]} {[%emt 00:00:30]} d5
{[%clk 01:29:43]} {[%emt 00:00:56]} 5. O-O {[%clk 01:31:08]} {[%emt 00:00:37]}
Be7 {[%clk 01:29:44]} {[%emt 00:00:29]} 6. c4 {[%clk 01:30:18]} {[%emt
00:01:20]} O-O {[%clk 01:28:09]} {[%emt 00:02:04]} 7. Nc3 {[%clk 01:29:25]}
{[%emt 00:01:24]} c6 {[%clk 01:27:49]} {[%emt 00:00:50]} 8. Ne5 {[%clk
01:26:59]} {[%emt 00:02:56]} Nfd7 {[%clk 01:27:15]} {[%emt 00:01:04]} 9. Nxd7
{[%clk 01:20:46]} {[%emt 00:06:43]} Nxd7 {[%clk 01:27:29]} {[%emt 00:00:16]} 10.
Bf4 {[%clk 01:19:36]} {[%emt 00:01:40]} Ba6 {[%clk 01:23:18]} {[%emt 00:04:41]}
11. cxd5 {[%clk 01:16:25]} {[%emt 00:03:42]} exd5 {[%clk 01:22:47]} {[%emt
00:01:01]} 12. Qa4 {[%clk 01:12:15]} {[%emt 00:04:39]} Bb7 {[%clk 01:23:03]}
{[%emt 00:00:14]} 13. e4 {[%clk 01:05:41]} {[%emt 00:07:04]} dxe4 {[%clk
01:15:10]} {[%emt 00:08:22]} 14. Bxe4 {[%clk 01:03:25]} {[%emt 00:02:46]} a6
{[%clk 01:00:53]} {[%emt 00:14:49]} 15. Rad1 {[%clk 00:56:14]} {[%emt
00:07:40]} Nf6 {[%clk 00:54:47]} {[%emt 00:06:35]} 16. Bg2 {[%clk 00:56:13]}
{[%emt 00:00:31]} Nd5 {[%clk 00:52:01]} {[%emt 00:03:16]} 17. Nxd5 {[%emt
00:02:39]} 1/2-1/2

[Event "Veteran-SM 65+ 2025"]
[Site "Uppsala, Sweden"]
[Date "2025.07.03"]
[Round "6.2"]
[White "Franchuck, Ivan"]
[Black "Korning, Peter"]
[Result "1/2-1/2"]
[TimeControl "90 min for 40 move + 30 min with an increment of 30 sec starting move 1"]
[WhiteFideId "14140187"]
[BlackFideId "1723332"]
[WhiteElo "2006"]
[BlackElo "1944"]

1. Nf3 {[%clk 01:29:43]} {[%emt 00:01:16]} d5 {[%clk 01:30:43]} {[%emt
00:00:17]} 2. c4 {[%clk 01:29:57]} {[%emt 00:00:16]} e6 {[%clk 01:30:52]}
{[%emt 00:00:22]} 3. g3 {[%clk 01:29:56]} {[%emt 00:00:30]} Nf6 {[%clk
01:30:54]} {[%emt 00:00:27]} 4. Bg2 {[%clk 01:30:14]} {[%emt 00:00:13]} dxc4
{[%clk 01:30:57]} {[%emt 00:00:27]} 5. Nc3 {[%clk 01:29:31]} {[%emt 00:01:13]}
Nbd7 {[%clk 01:26:52]} {[%emt 00:04:34]} 6. Qa4 {[%clk 01:28:43]} {[%emt
00:01:18]} c5 {[%clk 01:15:19]} {[%emt 00:12:03]} 7. Ne5 {[%clk 01:27:10]}
{[%emt 00:02:04]} a6 {[%clk 01:09:16]} {[%emt 00:06:34]} 8. Nxc4 {[%clk
01:27:04]} {[%emt 00:00:35]} b5 {[%clk 01:03:28]} {[%emt 00:06:18]} 9. Nxb5
{[%clk 01:27:24]} {[%emt 00:00:11]} axb5 {[%clk 01:03:33]} {[%emt 00:00:25]} 10.
Qxa8 {[%clk 01:27:50]} {[%emt 00:00:03]} bxc4 {[%clk 01:03:45]} {[%emt
00:00:18]} 11. Qa4 {[%clk 01:28:13]} {[%emt 00:00:07]} Be7 {[%clk 01:01:18]}
{[%emt 00:02:56]} 12. O-O {[%clk 01:28:20]} {[%emt 00:00:23]} O-O {[%clk
01:01:40]} {[%emt 00:00:09]} 13. Qxc4 {[%clk 01:28:40]} {[%emt 00:00:10]} Nb6
{[%clk 00:58:52]} {[%emt 00:03:17]} 14. Qc2 {[%clk 01:28:25]} {[%emt 00:00:45]}
Ba6 {[%clk 00:55:32]} {[%emt 00:03:50]} 15. d3 {[%clk 01:28:36]} {[%emt
00:00:19]} Qd7 {[%clk 00:51:20]} {[%emt 00:04:41]} 16. b3 {[%clk 01:27:16]}
{[%emt 00:01:51]} Rc8 {[%clk 00:50:19]} {[%emt 00:01:31]} 17. Bb2 {[%clk
01:26:18]} {[%emt 00:01:29]} Nfd5 {[%clk 00:46:29]} {[%emt 00:04:20]} 18. Qd2
{[%clk 01:23:47]} {[%emt 00:03:00]} Bf6 {[%clk 00:44:46]} {[%emt 00:02:14]} 19.
Bxf6 {[%clk 01:23:57]} {[%emt 00:00:19]} Nxf6 {[%clk 00:44:57]} {[%emt
00:00:19]} 20. Qa5 {[%clk 01:22:53]} {[%emt 00:01:35]} Qb5 {[%clk 00:43:09]}
{[%emt 00:02:17]} 21. Qxb5 {[%clk 01:22:50]} {[%emt 00:00:34]} Bxb5 {[%clk
00:43:37]} {[%emt 00:00:03]} 22. Rfc1 {[%clk 01:22:49]} {[%emt 00:00:30]} Nfd5
{[%clk 00:40:10]} {[%emt 00:03:56]} 23. Kf1 {[%clk 01:21:48]} {[%emt 00:01:32]}
Kf8 {[%clk 00:39:47]} {[%emt 00:00:52]} 24. a4 {[%clk 01:19:18]} {[%emt
00:03:01]} Ba6 {[%clk 00:39:34]} {[%emt 00:00:43]} 25. Ke1 {[%clk 01:17:37]}
{[%emt 00:02:10]} Ke7 {[%clk 00:37:07]} {[%emt 00:02:58]} 26. Kd2 {[%clk
01:17:47]} {[%emt 00:00:20]} Kd6 {[%clk 00:34:04]} {[%emt 00:03:30]} 27. h4
{[%clk 01:16:04]} {[%emt 00:02:16]} 1/2-1/2

[Event "Veteran-SM 65+ 2025"]
[Site "Uppsala, Sweden"]
[Date "2025.07.03"]
[Round "6.3"]
[White "Larsson, Per-Olov"]
[Black "Hogberg, Thomas"]
[Result "1/2-1/2"]
[TimeControl "90 min for 40 move + 30 min with an increment of 30 sec starting move 1"]
[WhiteFideId "1717774"]
[BlackFideId "1706039"]
[WhiteElo "1914"]
[BlackElo "1979"]

1. e4 {[%clk 01:30:53]} {[%emt 00:00:07]} d6 {[%clk 01:29:49]} {[%emt
00:01:11]} 2. d4 {[%clk 01:30:56]} {[%emt 00:00:28]} Nf6 {[%clk 01:30:12]}
{[%emt 00:00:07]} 3. Nc3 {[%clk 01:30:46]} {[%emt 00:00:40]} g6 {[%clk
01:30:29]} {[%emt 00:00:12]} 4. Nf3 {[%clk 01:29:52]} {[%emt 00:01:25]} Bg7
{[%clk 01:30:11]} {[%emt 00:00:47]} 5. Be3 {[%clk 01:29:42]} {[%emt 00:00:40]}
c6 {[%clk 01:27:54]} {[%emt 00:02:48]} 6. Bd3 {[%clk 01:27:48]} {[%emt
00:02:23]} Nbd7 {[%clk 01:26:03]} {[%emt 00:02:21]} 7. Qd2 {[%clk 01:26:17]}
{[%emt 00:02:01]} Ng4 {[%clk 01:12:27]} {[%emt 00:14:06]} 8. Bg5 {[%clk
01:22:26]} {[%emt 00:04:21]} f6 {[%clk 01:06:14]} {[%emt 00:06:44]} 9. Bh4
{[%clk 01:09:10]} {[%emt 00:13:46]} Qb6 {[%clk 01:05:04]} {[%emt 00:01:40]} 10.
Na4 {[%clk 01:05:35]} {[%emt 00:04:04]} Qc7 {[%clk 01:05:04]} {[%emt 00:00:30]}
11. h3 {[%clk 01:05:27]} {[%emt 00:00:39]} Nh6 {[%clk 01:05:26]} {[%emt
00:00:07]} 12. c4 {[%clk 01:01:06]} {[%emt 00:04:52]} Nf7 {[%clk 01:04:58]}
{[%emt 00:00:57]} 13. Nc3 {[%clk 00:58:42]} {[%emt 00:02:55]} e5 {[%clk
01:03:26]} {[%emt 00:02:02]} 14. d5 {[%clk 00:56:15]} {[%emt 00:02:57]} Nc5
{[%clk 00:59:19]} {[%emt 00:04:37]} 15. Bc2 {[%clk 00:49:33]} {[%emt 00:07:12]}
a5 {[%clk 00:54:49]} {[%emt 00:05:00]} 16. Bg3 {[%clk 00:44:15]} {[%emt
00:05:47]} Bd7 {[%clk 00:47:14]} {[%emt 00:08:05]} 17. Qe2 {[%clk 00:39:09]}
{[%emt 00:05:37]} O-O {[%clk 00:46:14]} {[%emt 00:01:30]} 18. O-O {[%clk
00:38:20]} {[%emt 00:01:19]} Rad8 {[%clk 00:40:54]} {[%emt 00:05:49]} 19. Nd2
{[%clk 00:37:25]} {[%emt 00:01:26]} Nh6 {[%clk 00:32:48]} {[%emt 00:08:35]} 20.
Kh1 {[%clk 00:36:49]} {[%emt 00:01:07]} f5 {[%clk 00:30:42]} {[%emt 00:02:36]}
21. f3 {[%clk 00:36:53]} {[%emt 00:00:25]} f4 {[%clk 00:27:07]} {[%emt
00:04:05]} 22. Bf2 {[%clk 00:36:53]} {[%emt 00:00:30]} Na6 {[%clk 00:25:54]}
{[%emt 00:01:43]} 23. a3 {[%clk 00:36:13]} {[%emt 00:01:11]} Nf7 {[%clk
00:25:06]} {[%emt 00:01:18]} 24. Na4 {[%clk 00:33:07]} {[%emt 00:03:35]} c5
{[%clk 00:24:22]} {[%emt 00:01:15]} 25. Bg1 {[%clk 00:26:10]} {[%emt 00:07:26]}
h5 {[%clk 00:22:50]} {[%emt 00:02:03]} 26. Nc3 {[%clk 00:23:58]} {[%emt
00:02:41]} Bf6 {[%clk 00:22:39]} {[%emt 00:00:41]} 27. Ba4 {[%clk 00:20:23]}
{[%emt 00:04:05]} Bc8 {[%clk 00:18:01]} {[%emt 00:05:09]} 28. Rfd1 {[%clk
00:19:37]} {[%emt 00:01:15]} g5 {[%clk 00:17:45]} {[%emt 00:00:47]} 29. Nf1
{[%clk 00:18:14]} {[%emt 00:01:53]} Nh6 {[%clk 00:17:51]} {[%emt 00:00:24]} 30.
Nh2 {[%clk 00:16:53]} {[%emt 00:01:50]} Qg7 {[%clk 00:17:41]} {[%emt 00:00:39]}
31. Rd2 {[%clk 00:16:24]} {[%emt 00:01:00]} Kf7 {[%clk 00:17:15]} {[%emt
00:00:57]} 32. Bd1 {[%clk 00:15:50]} {[%emt 00:01:04]} Rh8 {[%clk 00:17:15]}
{[%emt 00:00:30]} 33. Na4 {[%clk 00:10:56]} {[%emt 00:05:24]} Nc7 {[%clk
00:08:41]} {[%emt 00:09:04]} 34. Nb6 {[%clk 00:10:40]} {[%emt 00:00:45]} Be7
{[%clk 00:09:00]} {[%emt 00:00:12]} 35. Nxc8 {[%clk 00:10:32]} {[%emt
00:00:38]} Rxc8 {[%clk 00:09:25]} {[%emt 00:00:05]} 36. Bxc5 {[%clk 00:09:16]}
{[%emt 00:01:46]} dxc5 {[%clk 00:08:36]} {[%emt 00:01:19]} 37. d6 {[%clk
00:09:39]} {[%emt 00:00:07]} Ne6 {[%clk 00:09:00]} {[%emt 00:00:05]} 38. dxe7
{[%clk 00:09:36]} {[%emt 00:00:33]} Nd4 {[%clk 00:09:21]} {[%emt 00:00:10]} 39.
Qe1 {[%clk 00:08:53]} {[%emt 00:01:12]} Kxe7 {[%clk 00:08:24]} {[%emt
00:01:28]} 40. Rb1 {[%clk 00:06:55]} {[%emt 00:02:28]} Qf7 {[%clk 00:05:49]}
{[%emt 00:03:04]} 41. Be2 {[%clk 00:01:38]} {[%emt 00:05:47]} a4 {[%clk
00:02:28]} {[%emt 00:03:52]} 42. Qd1 {[%clk 00:28:30]} {[%emt 00:03:37]} Qe8
{[%clk 00:30:26]} {[%emt 00:02:32]} 43. Qe1 {[%clk 00:28:15]} {[%emt 00:00:46]}
Qc6 {[%clk 00:29:05]} {[%emt 00:01:51]} 44. Bd1 {[%clk 00:26:12]} {[%emt
00:02:33]} Ra8 {[%clk 00:28:17]} {[%emt 00:01:18]} 45. Rd3 {[%clk 00:23:55]}
{[%emt 00:02:46]} Qe6 {[%clk 00:27:39]} {[%emt 00:01:09]} 46. Rc3 {[%clk
00:23:54]} {[%emt 00:00:31]} Kf7 {[%clk 00:24:51]} {[%emt 00:03:17]} 47. Kg1
{[%clk 00:22:45]} {[%emt 00:01:39]} Rhg8 {[%clk 00:25:02]} {[%emt 00:00:20]} 48.
Kh1 {[%clk 00:22:10]} {[%emt 00:01:04]} Rg7 {[%clk 00:22:56]} {[%emt 00:02:37]}
49. Ra1 {[%clk 00:20:25]} {[%emt 00:02:15]} Kg8 {[%clk 00:22:21]} {[%emt
00:01:03]} 50. Qf2 {[%clk 00:19:13]} {[%emt 00:01:44]} Rd7 {[%clk 00:20:54]}
{[%emt 00:01:57]} 51. Qf1 {[%clk 00:18:30]} {[%emt 00:01:12]} Qc6 {[%clk
00:20:59]} {[%emt 00:00:24]} 52. Qe1 {[%clk 00:17:51]} {[%emt 00:01:10]} Kh7
{[%clk 00:16:51]} {[%emt 00:04:38]} 53. Rb1 {[%clk 00:17:19]} {[%emt 00:01:03]}
b6 {[%clk 00:12:56]} {[%emt 00:04:25]} 54. Ra1 {[%clk 00:16:49]} {[%emt
00:01:00]} Qe6 {[%clk 00:12:17]} {[%emt 00:01:08]} 55. Rac1 {[%clk 00:16:39]}
{[%emt 00:00:40]} Rd6 {[%clk 00:12:30]} {[%emt 00:00:18]} 56. Rb1 {[%clk
00:16:06]} {[%emt 00:01:03]} Qd7 {[%clk 00:12:42]} {[%emt 00:00:17]} 57. Rcc1
{[%clk 00:15:43]} {[%emt 00:00:53]} Rd8 {[%clk 00:12:24]} {[%emt 00:00:49]} 58.
Ra1 {[%clk 00:15:13]} {[%emt 00:01:00]} Ne6 {[%clk 00:09:30]} {[%emt 00:03:23]}
59. Be2 {[%clk 00:14:25]} {[%emt 00:01:18]} Rd4 {[%clk 00:08:37]} {[%emt
00:01:23]} 60. Rd1 {[%clk 00:13:47]} {[%emt 00:01:09]} Qc6 {[%clk 00:08:39]}
{[%emt 00:00:27]} 61. Rac1 {[%clk 00:12:23]} {[%emt 00:01:55]} R8d6 {[%clk
00:08:50]} {[%emt 00:00:19]} 62. Rb1 {[%clk 00:09:40]} {[%emt 00:03:12]} Ng8
{[%clk 00:08:22]} {[%emt 00:00:58]} 63. Nf1 {[%clk 00:08:57]} {[%emt 00:01:14]}
Nf6 {[%clk 00:08:45]} {[%emt 00:00:07]} 64. Nh2 {[%clk 00:08:45]} {[%emt
00:00:42]} Qd7 {[%clk 00:08:52]} {[%emt 00:00:23]} 65. Rxd4 {[%clk 00:07:57]}
{[%emt 00:01:18]} cxd4 {[%clk 00:09:08]} {[%emt 00:00:13]} 66. Bd3 {[%clk
00:08:06]} {[%emt 00:00:22]} Nc5 {[%clk 00:09:14]} {[%emt 00:00:24]} 67. Qe2
{[%clk 00:06:40]} {[%emt 00:01:56]} g4 {[%clk 00:08:35]} {[%emt 00:01:09]} 68.
fxg4 {[%clk 00:06:15]} {[%emt 00:00:55]} hxg4 {[%clk 00:08:57]} {[%emt
00:00:07]} 69. hxg4 {[%clk 00:06:23]} {[%emt 00:00:22]} Nxg4 {[%clk 00:08:32]}
{[%emt 00:00:56]} 70. Nxg4 {[%clk 00:05:17]} {[%emt 00:01:36]} Nxd3 {[%clk
00:08:46]} {[%emt 00:00:16]} 71. Qxd3 {[%clk 00:04:01]} {[%emt 00:01:45]} Qxg4
{[%clk 00:09:07]} {[%emt 00:00:09]} 72. Qf3 {[%clk 00:02:57]} {[%emt 00:01:34]}
Qg7 {[%clk 00:06:59]} {[%emt 00:02:38]} 73. Kg1 {[%clk 00:02:58]} {[%emt
00:00:30]} Rg6 {[%clk 00:07:16]} {[%emt 00:00:11]} 74. Qh3+ {[%clk 00:02:40]}
{[%emt 00:00:49]} Kg8 {[%clk 00:06:02]} {[%emt 00:01:45]} 75. Kf2 {[%clk
00:01:50]} {[%emt 00:01:20]} Qf7 {[%clk 00:05:15]} {[%emt 00:01:16]} 76. Rh1
{[%clk 00:01:48]} {[%emt 00:00:31]} Qg7 {[%clk 00:04:40]} {[%emt 00:01:06]}
1/2-1/2